fUSD/lending_fUSD_20250804
["ID","MTS","AMOUNT","RATE_DAILY","PERIOD"]
[377204532,1754290323634,-959.06,0.00047123,120]
[377204533,1754290323643,-400.0,0.00047123,120]
[377204534,1754290323654,-896.51,0.00047123,60]
[377204535,1754290323663,-1413.05,0.00047123,120]
[377204536,1754290323673,-1161.04,0.00047123,120]
[377204537,1754290323686,-400.0,0.00047123,120]
[377204538,1754290323696,-403.21040926,0.00047123,120]
[377204539,1754290323706,-400.0,0.00047123,120]
[377204540,1754290323716,-402.92861493,0.00047123,120]
[377204541,1754290323727,-400.0,0.00047123,120]
[377204542,1754290323736,-748.34,0.00047123,120]
[377204543,1754290323746,-428.06,0.00047123,120]
[377204544,1754290323760,-401.76715578,0.00047123,120]
[377204545,1754290323769,-1378.67,0.00047123,30]
[377204546,1754290323779,-1109.79,0.00047123,120]
[377204547,1754290323789,-400.0,0.00047123,120]
[377204548,1754290323799,-400.0,0.00047123,120]
[377204549,1754290323808,-400.0,0.00047123,120]
[377204550,1754290323818,-400.0,0.00047123,120]
[377204551,1754290323828,-400.0,0.00047123,120]
[377204552,1754290323837,-478.93,0.00047123,120]
[377204553,1754290323850,-400.0,0.00047123,120]
[377204554,1754290323861,-400.0,0.00047123,120]
[377204555,1754290323871,-400.0,0.00047123,120]
[377204556,1754290323881,-400.0,0.00047123,120]
[377204557,1754290323891,-400.0,0.00047123,120]
[377204558,1754290323902,-375.67579745,0.00047123,120]
[377204559,1754290323912,-1565.49,0.00047123,120]
[377204560,1754290323922,-520.46,0.00047123,120]
[377204561,1754290323932,-1250.84,0.00047123,120]
[377204562,1754290323941,-400.0,0.00047123,120]
[377204563,1754290323951,-417.81,0.00047123,120]
[377204564,1754290323964,-400.0,0.00047123,120]
[377204565,1754290323974,-523.25008589,0.00047123,120]
[377204566,1754290323984,-1440.46,0.00047123,120]
[377204567,1754290323994,-400.0,0.00047123,120]
[377204568,1754290324003,-607.0,0.00047123,120]
[377204569,1754290324013,-400.0,0.00047123,120]
[377204570,1754290324023,-400.0,0.00047123,120]
[377204571,1754290324033,-400.0,0.00047123,120]
[377204572,1754290324043,-400.0,0.00047123,120]
[377204573,1754290324053,-400.0,0.00047123,120]
[377204574,1754290324063,-400.0,0.00047123,120]
[377204575,1754290324072,-400.0,0.00047123,120]
[377204576,1754290324082,-400.0,0.00047123,120]
[377204577,1754290324092,-400.0,0.00047123,120]
[377204578,1754290324102,-890.87,0.00047123,120]
[377204579,1754290324112,-400.0,0.00047123,120]
[377204580,1754290324122,-542.74,0.00047123,120]
[377204581,1754290324132,-411.21,0.00047123,120]
[377204582,1754290324141,-400.0,0.00047123,120]
[377204583,1754290324151,-1103.85,0.00047123,120]
[377204584,1754290324160,-400.0,0.00047123,120]
[377204585,1754290324170,-648.08,0.00047123,120]
[377204586,1754290324179,-715.56,0.00047123,120]
[377204587,1754290324189,-635.18,0.00047123,120]
[377204588,1754290324199,-400.0,0.00047123,120]
[377204589,1754290324208,-400.0,0.00047123,120]
[377204590,1754290324218,-1404.29,0.00047123,120]
[377204591,1754290324228,-401.97000811,0.00047123,120]
[377204592,1754290324237,-492.0,0.00047123,120]
[377204593,1754290324247,-1181.75,0.00047123,120]
[377204594,1754290324257,-1960.928243,0.00047123,120]
[377204595,1754290324266,-684.1,0.00047123,120]
[377204596,1754290324276,-909.02,0.00047123,120]
[377204597,1754290324286,-538.43,0.00047123,120]
[377204598,1754290324298,-1690.433574,0.00047123,120]
[377204599,1754290324307,-401.09836103,0.00047123,120]
[377204600,1754290324317,-400.0,0.00047123,120]
[377204601,1754290324327,-532.06618798,0.00047123,120]
[377204602,1754290324336,-400.0,0.00047123,120]
[377204603,1754290324347,-976.85,0.00047123,120]
[377204604,1754290324357,-193.02364787,0.00047123,120]
[377204605,1754290324366,-523.08,0.00047123,120]
[377204606,1754290324376,-605.26,0.00047123,120]
[377204607,1754290324388,-400.0,0.00047123,120]
[377204608,1754290324399,-400.0,0.00047123,120]
[377204609,1754290324409,-151.0,0.00047123,14]
[377204610,1754290324418,-1884.130011,0.00047123,120]
[377204611,1754290324429,-400.0,0.00047123,120]
[377204612,1754290324439,-400.0,0.00047123,120]
[377204613,1754290324449,-156.985334,0.00047123,120]
[377204614,1754290324459,-1507.76,0.00047123,120]
[377204615,1754290324469,-400.0,0.00047123,120]
[377204616,1754290324479,-400.0,0.00047123,120]
[377204617,1754290324490,-882.11,0.00047123,120]
[377204618,1754290324500,-1330.07,0.00047123,120]
[377204619,1754290324510,-1157.19,0.00047123,120]
[377204620,1754290324520,-156.609953,0.00047123,120]
[377204621,1754290324530,-400.0,0.00047123,120]
[377204622,1754290324540,-1313.52,0.00047123,120]
[377204623,1754290324550,-928.51,0.00047123,120]
[377204624,1754290324560,-436.65506569,0.00047123,120]
[377204625,1754290324571,-400.0,0.00047123,120]
[377204626,1754290324581,-465.87279559,0.00047123,120]
[377204627,1754290324591,-793.75,0.00047123,60]
[377204628,1754290324602,-578.34,0.00047123,120]
[377204629,1754290324612,-400.0,0.00047123,120]
[377204630,1754290324622,-400.0,0.00047123,120]
[377204631,1754290324632,-400.0,0.00047123,120]
[377204632,1754290324642,-400.0,0.00047123,120]
[377204633,1754290324652,-400.0,0.00047123,120]
[377204634,1754290324662,-409.12,0.00047123,120]
[377204635,1754290324674,-473.45386816,0.00047123,120]
[377204636,1754290324687,-680.89,0.00047123,120]
[377204637,1754290324697,-400.0,0.00047123,120]
[377204638,1754290324707,-489.31,0.00047123,120]
[377204639,1754290324717,-1120.45,0.00047123,120]
[377204640,1754290324728,-400.0,0.00047123,120]
[377204641,1754290324738,-400.0,0.00047123,120]
[377204642,1754290324748,-1077.23,0.00047123,120]
[377204643,1754290324760,-400.0,0.00047123,120]
[377204644,1754290324771,-400.0,0.00047123,120]
[377204645,1754290324780,-400.0,0.00047123,120]
[377204646,1754290324791,-1711.4,0.00047123,120]
[377204647,1754290324801,-444.10779523,0.00047123,120]
[377204648,1754290324811,-400.0,0.00047123,120]
[377204649,1754290324822,-821.7,0.00047123,120]
[377204650,1754290324836,-727.58,0.00047123,120]
[377204651,1754290324848,-2047.95,0.00047123,120]
[377204652,1754290324859,-400.0,0.00047123,120]
[377204653,1754290324870,-400.0,0.00047123,120]
[377204654,1754290324880,-400.0,0.00047123,120]
[377204655,1754290324890,-421.63,0.00047123,120]
[377204656,1754290324900,-847.35,0.00047123,120]
[377204657,1754290324911,-4419.29,0.00047123,120]
[377204658,1754290324921,-402.65185867,0.00047123,120]
[377204659,1754290324931,-666.64,0.00047123,120]
[377204660,1754290324942,-1247.94,0.00047123,120]
[377204661,1754290324952,-1725.99,0.00047123,120]
[377204662,1754290324962,-400.0,0.00047123,120]
[377204663,1754290324974,-400.0,0.00047123,120]
[377204664,1754290324985,-1477.19,0.00047123,120]
[377204665,1754290324995,-209.11218765,0.00047123,120]
[377204666,1754290325006,-955.38,0.00047123,120]
[377204667,1754290325017,-400.0,0.00047123,120]
[377204668,1754290325028,-765.07,0.00047123,120]
[377204669,1754290325038,-1280.8,0.00047123,2]
[377204670,1754290325048,-261.69411243,0.00047123,120]
[377204671,1754290325059,-400.0,0.00047123,120]
[377204672,1754290325070,-901.07,0.00047123,120]
[377204673,1754290325081,-400.0,0.00047123,120]
[377204674,1754290325091,-400.0,0.00047123,120]
[377204675,1754290325104,-759.02,0.00047123,120]
[377204676,1754290325114,-464.32518282,0.00047123,120]
[377204677,1754290325125,-400.0,0.00047123,120]
[377204678,1754290325135,-400.0,0.00047123,120]
[377204679,1754290325146,-1041.79,0.00047123,120]
[377204680,1754290325156,-400.0,0.00047123,120]
[377204681,1754290325167,-400.0,0.00047123,120]
[377204682,1754290325177,-414.05,0.00047123,120]
[377204683,1754290325188,-400.0,0.00047123,120]
[377204684,1754290325198,-567.57,0.00047123,120]
[377204685,1754290325209,-400.0,0.00047123,120]
[377204686,1754290325219,-940.11,0.00047123,120]
[377204687,1754290325230,-1234.23,0.00047123,120]
[377204688,1754290325240,-292.325987,0.00047123,14]
[377204689,1754290325250,-1023.01,0.00047123,120]
[377204690,1754290325261,-1024.47,0.00047123,120]
[377204691,1754290325272,-400.0,0.00047123,120]
[377204692,1754290325283,-297.25701642,0.00047123,120]
[377204693,1754290325293,-1121.36,0.00047123,120]
[377204694,1754290325303,-838.61,0.00047123,120]
[377204695,1754290325313,-151.0,0.00047123,14]
[377204696,1754290325323,-1732.74,0.00047123,120]
[377204697,1754290325333,-722.19,0.00047123,120]
[377204698,1754290325343,-400.0,0.00047123,120]
[377204699,1754290325354,-400.0,0.00047123,120]
[377204700,1754290325365,-400.0,0.00047123,120]
[377204701,1754290325375,-407.47,0.00047123,120]
[377204702,1754290325385,-400.0,0.00047123,120]
[377204703,1754290325395,-428.48,0.00047123,120]
[377204704,1754290325405,-944.26,0.00047123,120]
[377204705,1754290325415,-400.0,0.00047123,120]
[377204706,1754290325424,-1293.91,0.00047123,120]
[377204707,1754290325435,-400.0,0.00047123,120]
[377204708,1754290325445,-400.0,0.00047123,120]
[377204709,1754290325455,-437.67,0.00047123,120]
[377204710,1754290325466,-402.35404136,0.00047123,120]
[377204711,1754290325476,-400.0,0.00047123,120]
[377204712,1754290325487,-664.62,0.00047123,120]
[377204713,1754290325499,-407.17790666,0.00047123,120]
[377204714,1754290325509,-615.77,0.00047123,120]
[377204715,1754290325520,-983.62,0.00047123,120]
[377204716,1754290325531,-1159.72,0.00047123,120]
[377204717,1754290325542,-400.0,0.00047123,120]
[377204718,1754290325554,-589.2,0.00047123,120]
[377204719,1754290325564,-1944.0,0.00047123,120]
[377204720,1754290325575,-400.0,0.00047123,120]
[377204721,1754290325585,-704.89,0.00047123,120]
[377204722,1754290325597,-400.0,0.00047123,120]
[377204723,1754290325607,-403.73405447,0.00047123,120]
[377204724,1754290325617,-1090.73,0.00047123,120]
[377204725,1754290325627,-864.15,0.00047123,120]
[377204726,1754290325647,-711.51,0.00047123,120]
[377204727,1754290325659,-400.0,0.00047123,120]
[377204728,1754290325670,-456.13,0.00047123,120]
[377204729,1754290325685,-401.78079933,0.00047123,120]
[377204730,1754290325696,-150.79999689,0.00047123,120]
[377204731,1754290325706,-400.0,0.00047123,120]
[377204732,1754290325717,-992.05,0.00047123,120]
[377204733,1754290325727,-873.07,0.00047123,120]
[377204734,1754290325739,-400.0,0.00047123,120]
[377204735,1754290325750,-400.0,0.00047123,120]
[377204736,1754290325761,-803.61,0.00047123,120]
[377204737,1754290325772,-383.60800051,0.00047123,120]
[377204738,1754290325783,-835.16,0.00047123,120]
[377204739,1754290325794,-529.07,0.00047123,120]
[377204740,1754290325804,-1886.61,0.00047123,120]
[377204741,1754290325815,-510.59,0.00047123,120]
[377204742,1754290325826,-1241.9,0.00047123,120]
[377204743,1754290325836,-1938.01,0.00047123,120]
[377204744,1754290325847,-931.63,0.00047123,120]
[377204745,1754290325858,-1414.91,0.00047123,120]
[377204746,1754290325869,-1288.92,0.00047123,120]
[377204747,1754290325879,-647.76,0.00047123,120]
[377204748,1754290325890,-651.67,0.00047123,120]
[377204749,1754290325900,-400.0,0.00047123,120]
[377204750,1754290325911,-480.17,0.00047123,120]
[377204751,1754290325922,-739.24,0.00047123,120]
[377204752,1754290325933,-470.07,0.00047123,120]
[377204753,1754290325943,-415.44,0.00047123,120]
[377204754,1754290325954,-1148.6,0.00047123,120]
[377204755,1754290325964,-400.0,0.00047123,120]
[377204756,1754290325975,-582.45,0.00047123,120]
[377204757,1754290325986,-400.0,0.00047123,120]
[377204758,1754290325996,-6194.75,0.00047123,120]
[377204759,1754290326007,-1126.3,0.00047123,120]
[377204760,1754290326018,-550.08,0.00047123,120]
[377204761,1754290326028,-404.88567389,0.00047123,120]
[377204762,1754290326038,-400.0,0.00047123,120]
[377204763,1754290326049,-400.0,0.00047123,7]
[377204764,1754290326059,-442.19,0.00047123,120]
[377204765,1754290326070,-1252.69,0.00047123,120]
[377204766,1754290326080,-405.89,0.00047123,120]
[377204767,1754290326091,-400.0,0.00047123,120]
[377204768,1754290326102,-400.0,0.00047123,120]
[377204769,1754290326112,-3027.52,0.00047123,120]
[377204770,1754290326123,-413.99,0.00047123,120]
[377204771,1754290326133,-1732.1,0.00047123,120]
[377204772,1754290326143,-400.0,0.00047123,120]
[377204773,1754290326154,-400.0,0.00047123,120]
[377204774,1754290326165,-200.83083385,0.00047123,120]
[377204775,1754290326175,-400.0,0.00047123,120]
[377204776,1754290326186,-400.0,0.00047123,120]
[377204777,1754290326197,-400.0,0.00047123,120]
[377204778,1754290326208,-1473.85,0.00047123,120]
[377204779,1754290326218,-400.0,0.00047123,120]
[377204780,1754290326229,-400.0,0.00047123,120]
[377204781,1754290326239,-400.0,0.00047123,120]
[377204782,1754290326250,-400.0,0.00047123,120]
[377204783,1754290326261,-457.13,0.00047123,120]
[377204784,1754290326272,-2588.78,0.00047123,120]
[377204785,1754290326282,-400.0,0.00047123,120]
[377204786,1754290326293,-1796.48,0.00047123,120]
[377204787,1754290326304,-520.0,0.00047123,120]
[377204788,1754290326315,-527.16,0.00047123,120]
[377204789,1754290326325,-1690.27,0.00047123,120]
[377204790,1754290326335,-400.0,0.00047123,120]
[377204791,1754290326351,-1266.42,0.00047123,120]
[377204792,1754290326362,-653.3,0.00047123,120]
[377204793,1754290326373,-1195.08,0.00047123,120]
[377204794,1754290326384,-400.0,0.00047123,120]
[377204795,1754290326395,-1579.08,0.00047123,120]
[377204796,1754290326406,-400.0,0.00047123,120]
[377204797,1754290326416,-1395.13,0.00047123,120]
[377204798,1754290326427,-432.6,0.00047123,120]
[377204799,1754290326438,-288.26906721,0.00047123,120]
[377204800,1754290326449,-400.0,0.00047123,120]
[377204801,1754290326460,-400.0,0.00047123,120]
[377204802,1754290326471,-400.0,0.00047123,120]
[377204803,1754290326482,-472.09,0.00047123,120]
[377204804,1754290326493,-400.0,0.00047123,120]
[377204805,1754290326504,-1000.17,0.00047123,120]
[377204806,1754290326515,-599.49,0.00047123,120]
[377204807,1754290326525,-538.07,0.00047123,120]
[377204808,1754290326536,-504.36,0.00047123,120]
[377204809,1754290326547,-291.18521364,0.00047123,120]
[377204810,1754290326558,-400.0,0.00047123,120]
[377204811,1754290326569,-400.0,0.00047123,120]
[377204812,1754290326580,-400.0,0.00047123,120]
[377204813,1754290326591,-549.51,0.00047123,120]
[377204814,1754290326603,-4817.73,0.00047123,120]
[377204815,1754290326614,-1319.08,0.00047123,120]
[377204816,1754290326624,-2387.84,0.00047123,120]
[377204817,1754290326635,-400.0,0.00047123,120]
[377204818,1754290326647,-400.0,0.00047123,120]
[377204819,1754290326658,-5079.36,0.00047123,120]
[377204820,1754290326668,-400.0,0.00047123,120]
[377204821,1754290326681,-1680.69,0.00047123,120]
[377204822,1754290326693,-400.0,0.00047123,120]
[377204823,1754290326703,-400.0,0.00047123,120]
[377204824,1754290326714,-400.0,0.00047123,120]
[377204825,1754290326726,-1295.48,0.00047123,120]
[377204826,1754290326737,-400.0,0.00047123,120]
[377204827,1754290326748,-400.0,0.00047123,120]
[377204828,1754290326759,-435.74,0.00047123,120]
[377204829,1754290326770,-1121.24,0.00047123,120]
[377204830,1754290326781,-526.22,0.00047123,120]
[377204831,1754290326792,-400.0,0.00047123,120]
[377204832,1754290327235,-705.04,0.00047123,120]
[377204833,1754290327260,-734.38,0.00047123,120]
[377204834,1754290327272,-2936.94,0.00047123,120]
[377204835,1754290327282,-400.0,0.00047123,120]
[377204836,1754290327292,-1130.87,0.00047123,120]
[377204837,1754290327302,-867.58,0.00047123,120]
[377204838,1754290327312,-400.0,0.00047123,120]
[377204839,1754290327321,-926.06,0.00047123,120]
[377204840,1754290327332,-465.98,0.00047123,120]
[377204841,1754290327342,-400.0,0.00047123,120]
[377204842,1754290327353,-1703.37,0.00047123,120]
[377204843,1754290327363,-400.0,0.00047123,120]
[377204844,1754290327373,-1231.39,0.00047123,120]
[377204845,1754290327383,-400.0,0.00047123,120]
[377204846,1754290327392,-704.05,0.00047123,120]
[377204847,1754290327402,-320.99978506,0.00047123,120]
[377204848,1754290327412,-402.89434533,0.00047123,120]
[377204849,1754290327421,-400.0,0.00047123,120]
[377204850,1754290327431,-400.0,0.00047123,120]
[377204851,1754290327440,-487.85,0.00047123,120]
[377204852,1754290327450,-400.0,0.00047123,120]
[377204853,1754290327459,-400.0,0.00047123,120]
[377204854,1754290327469,-730.78,0.00047123,120]
[377204855,1754290327479,-1356.87,0.00047123,120]
[377204856,1754290327490,-500.81,0.00047123,120]
[377204857,1754290327500,-400.0,0.00047123,120]
[377204858,1754290327510,-947.6,0.00047123,120]
[377204859,1754290327522,-400.0,0.00047123,120]
[377204860,1754290327532,-400.0,0.00047123,120]
[377204861,1754290327542,-400.0,0.00047123,120]
[377204862,1754290327552,-434.42,0.00047123,120]
[377204863,1754290327562,-1287.13,0.00047123,120]
[377204864,1754290327572,-400.0,0.00047123,120]
[377204865,1754290327581,-400.0,0.00047123,120]
[377204866,1754290327591,-187.42414019,0.00047123,120]
[377204867,1754290327602,-400.0,0.00047123,120]
[377204868,1754290327611,-896.46,0.00047123,120]
[377204869,1754290327621,-1890.35,0.00047123,120]
[377204870,1754290327631,-1067.68,0.00047123,120]
[377204871,1754290327640,-400.0,0.00047123,120]
[377204872,1754290327650,-841.55,0.00047123,120]
[377204873,1754290327660,-434.38,0.00047123,120]
[377204874,1754290327669,-400.0,0.00047123,120]
[377204875,1754290327683,-362.51757916,0.00047123,120]
[377204876,1754290327693,-530.43,0.00047123,120]
[377204877,1754290327702,-400.0,0.00047123,120]
[377204878,1754290327712,-987.56,0.00047123,120]
[377204879,1754290327723,-469.62,0.00047123,120]
[377204880,1754290327732,-329.41578362,0.00047123,120]
[377204881,1754290327742,-810.88,0.00047123,120]
[377204882,1754290327752,-400.0,0.00047123,120]
[377204883,1754290327763,-915.69,0.00047123,120]
[377204884,1754290327773,-1058.36,0.00047123,120]
[377204885,1754290327783,-1501.77,0.00047123,120]
[377204886,1754290327792,-935.48,0.00047123,120]
[377204887,1754290327802,-1101.74,0.00047123,120]
[377204888,1754290327812,-400.0,0.00047123,120]
[377204889,1754290327822,-1159.69,0.00047123,120]
[377204890,1754290327832,-400.0,0.00047123,120]
[377204891,1754290327842,-400.0,0.00047123,120]
[377204892,1754290327852,-1876.25,0.00047123,120]
[377204893,1754290327862,-798.01,0.00047123,120]
[377204894,1754290327872,-482.40863723,0.00047123,120]
[377204895,1754290327882,-5826.35,0.00047123,120]
[377204896,1754290327891,-400.0,0.00047123,120]
[377204897,1754290327901,-896.35,0.00047123,120]
[377204898,1754290327910,-556.22,0.00047123,120]
[377204899,1754290327920,-400.0,0.00047123,120]
[377204900,1754290327930,-1601.38,0.00047123,120]
[377204901,1754290327940,-400.0,0.00047123,120]
[377204902,1754290327950,-607.9,0.00047123,120]
[377204903,1754290327960,-2561.99,0.00047123,14]
[377204904,1754290327970,-400.0,0.00047123,120]
[377204905,1754290327979,-655.52,0.00047123,120]
[377204906,1754290327989,-400.0,0.00047123,120]
[377204907,1754290327998,-529.18,0.00047123,120]
[377204908,1754290328009,-485.14,0.00047123,120]
[377204909,1754290328019,-451.2,0.00047123,120]
[377204910,1754290328030,-400.0,0.00047123,120]
[377204911,1754290328041,-1166.35,0.00047123,120]
[377204912,1754290328051,-151.0,0.00047123,14]
[377204913,1754290328061,-400.0,0.00047123,120]
[377204914,1754290328072,-456.28,0.00047123,120]
[377204915,1754290328082,-838.64,0.00047123,120]
[377204916,1754290328091,-1792.8,0.00047123,120]
[377204917,1754290328102,-1368.58,0.00047123,120]
[377204918,1754290328112,-517.54,0.00047123,120]
[377204919,1754290328122,-1364.42,0.00047123,120]
[377204920,1754290328133,-660.82,0.00047123,120]
[377204921,1754290328142,-400.0,0.00047123,120]
[377204922,1754290328152,-398.25546338,0.00047123,120]
[377204923,1754290328162,-1118.49,0.00047123,120]
[377204924,1754290328172,-400.0,0.00047123,120]
[377204925,1754290328182,-400.0,0.00047123,120]
[377204926,1754290328191,-400.0,0.00047123,120]
[377204927,1754290328201,-400.0,0.00047123,120]
[377204928,1754290328210,-89408.18,0.00047123,120]
[377204929,1754290328220,-606.91,0.00047123,120]
[377204930,1754290328229,-400.0,0.00047123,120]
[377204931,1754290328239,-1091.37,0.00047123,120]
[377204932,1754290328249,-842.24,0.00047123,120]
[377204933,1754290328259,-400.0,0.00047123,120]
[377204934,1754290328269,-1407.22,0.00047123,120]
[377204935,1754290328279,-400.0,0.00047123,120]
[377204936,1754290328288,-400.0,0.00047123,120]
[377204937,1754290328298,-1114.29,0.00047123,120]
[377204938,1754290328308,-641.89,0.00047123,120]
[377204939,1754290328317,-442.8,0.00047123,120]
[377204940,1754290328327,-429.17,0.00047123,120]
[377204941,1754290328336,-400.0,0.00047123,120]
[377204942,1754290328346,-400.0,0.00047123,120]
[377204943,1754290328355,-681.25,0.00047123,120]
[377204944,1754290328365,-3089.74,0.00047123,120]
[377204945,1754290328375,-400.0,0.00047123,120]
[377204946,1754290328384,-400.0,0.00047123,120]
[377204947,1754290328393,-735.44,0.00047123,120]
[377204948,1754290328403,-1045.87,0.00047123,120]
[377204949,1754290328412,-400.0,0.00047123,120]
[377204950,1754290328422,-512.16,0.00047123,120]
[377204951,1754290328431,-7487.46,0.00047123,120]
[377204952,1754290328441,-1620.5,0.00047123,120]
[377204953,1754290328451,-1146.08,0.00047123,120]
[377204954,1754290328460,-400.0,0.00047123,120]
[377204955,1754290328470,-1108.92,0.00047123,120]
[377204956,1754290328479,-997.82,0.00047123,120]
[377204957,1754290328488,-4191.81,0.00047123,120]
[377204958,1754290328498,-706.49,0.00047123,120]
[377204959,1754290328507,-400.0,0.00047123,120]
[377204960,1754290328517,-442.74,0.00047123,120]
[377204961,1754290328526,-151.0,0.00047123,14]
[377204962,1754290328536,-471.63,0.00047123,120]
[377204963,1754290328546,-400.0,0.00047123,120]
[377204964,1754290328555,-451.29,0.00047123,120]
[377204965,1754290328565,-879.395519,0.00047123,14]
[377204966,1754290328574,-400.0,0.00047123,120]
[377204967,1754290328584,-400.0,0.00047123,120]
[377204968,1754290328594,-400.0,0.00047123,120]
[377204969,1754290328604,-879.395519,0.00047123,14]
[377204970,1754290328614,-400.0,0.00047123,120]
[377204971,1754290328624,-2538.55,0.00047123,120]
[377204972,1754290328634,-485.24,0.00047123,120]
[377204973,1754290328644,-1069.88,0.00047123,120]
[377204974,1754290328654,-400.0,0.00047123,120]
[377204975,1754290328664,-429.54,0.00047123,120]
[377204976,1754290328674,-803.05,0.00047123,120]
[377204977,1754290328687,-400.0,0.00047123,120]
[377204978,1754290328697,-400.0,0.00047123,120]
[377204979,1754290328707,-151.0,0.00047125,14]
[377204980,1754290328718,-157.134854,0.00047125,14]
[377204981,1754290328729,-157.134854,0.00047125,14]
[377204982,1754290328739,-151.0,0.00047125,14]
[377204983,1754290328749,-150.0,0.0004714,7]
[377204984,1754290328764,-151.0,0.00047142,14]
[377204985,1754290328774,-186.242691,0.00047142,14]
[377204986,1754290328784,-186.242691,0.00047142,14]
[377204987,1754290328793,-151.0,0.00047142,14]
[377204988,1754290328803,-152.513532,0.00047142,14]
[377204989,1754290328813,-151.0,0.00047142,14]
[377204990,1754290328823,-151.0,0.00047142,14]
[377204991,1754290328833,-151.0,0.00047142,14]
[377204992,1754290328844,-151.0,0.00047142,14]
[377204993,1754290328855,-151.0,0.00047142,14]
[377204994,1754290328865,-151.0,0.00047142,14]
[377204995,1754290328875,-151.0,0.00047142,14]
[377204996,1754290328885,-151.0,0.00047142,14]
[377204997,1754290328895,-151.0,0.00047142,14]
[377204998,1754290328905,-150.0,0.0004717,7]
[377204999,1754290328915,-150.0,0.00047174,7]
[377205000,1754290328925,-150.0,0.00047192,7]
[377205001,1754290328935,-152.0,0.00047201,15]
[377205002,1754290328945,-150.0,0.00047202,7]
[377205003,1754290328955,-888.0,0.00047247,120]
[377205004,1754290328965,-150.0,0.00047249,7]
[377205005,1754290328975,-500.0,0.00047251,120]
[377205006,1754290328985,-500.0,0.00047251,120]
[377205007,1754290328994,-512.0,0.00047255,14]
[377205008,1754290329004,-150.0,0.00047259,7]
[377205009,1754290329014,-500.0,0.00047261,120]
[377205010,1754290329024,-505.60377316,0.00047261,120]
[377205011,1754290329034,-2268.23,0.00047261,120]
[377205012,1754290329044,-502.47851324,0.00047261,120]
[377205013,1754290329054,-156.312294,0.00047262,14]
[377205014,1754290329064,-151.0,0.00047262,14]
[377205015,1754290329074,-152.426126,0.00047262,14]
[377205016,1754290329083,-151.0,0.00047262,14]
[377205017,1754290329093,-151.0,0.00047262,14]
[377205018,1754290329102,-151.0,0.00047262,14]
[377205019,1754290329112,-247.332141,0.00047262,14]
[377205020,1754290329121,-151.0,0.00047262,14]
[377205021,1754290329131,-400.0,0.00047262,120]
[377205022,1754290329140,-799.2,0.00047262,120]
[377205023,1754290329150,-151.0,0.00047262,14]
[377205024,1754290329160,-400.0,0.00047262,120]
[377205025,1754290329169,-726.69,0.00047262,120]
[377205026,1754290329179,-400.0,0.00047262,120]
[377205027,1754290329188,-400.0,0.00047262,120]
[377205028,1754290329197,-400.0,0.00047262,120]
[377205029,1754290329207,-401.38327101,0.00047262,120]
[377205030,1754290329216,-401.51159927,0.00047262,120]
[377205031,1754290329226,-1306.33,0.00047262,120]